fUST/lending_fUST_20251029
["ID","MTS","AMOUNT","RATE_DAILY","PERIOD"]
[392614558,1761747043869,-331.0,0.00021306,2]
[392614559,1761747043878,-331.0,0.00021306,2]
[392614560,1761747043887,-331.0,0.00021306,2]
[392614561,1761747043897,-331.0,0.00021306,2]
[392614562,1761747043906,-331.0,0.00021306,2]
[392614563,1761747043917,-500.0,0.00021309,2]
[392614564,1761747043927,-280.01111809,0.00021368,2]
[392614565,1761747043938,-1219.98888191,0.00021368,2]
[392614566,1761747043948,-336.89214332,0.00021391,2]
[392614567,1761747043957,-403.72361849,0.00021496,2]
[392614568,1761747043967,-633.0,0.00021522,2]
[392614569,1761747043976,-2167.0,0.00021522,2]
[392614570,1761747043985,-877.89535628,0.00021522,2]
[392614571,1761747043997,-106.10464372,0.00021522,2]
[392614572,1761747044006,-500.0,0.00021583,2]
[392614573,1761747044015,-420.0,0.00021583,2]
[392614574,1761747044024,-121.99535628,0.00021646,2]
[392614575,1761747044057,-177.11464372,0.00021646,2]
[392614576,1761747044067,-511.54028576,0.000218,20]
[392614629,1761747046863,-411.40955206,0.00020113,2]
[392614631,1761747046873,-208.45971424,0.000218,20]
[392614653,1761747046882,-403.72361849,0.00021817,3]
[392614656,1761747047083,-336.89214332,0.00021817,2]
[392614657,1761747047092,-500.0,0.00021857,2]
[392614660,1761747047102,-2000.0,0.00021916,2]
[392614661,1761747047111,-500.0,0.00021917,2]
[392614664,1761747047122,-215.86560167,0.00021917,2]
[392614666,1761747047134,-268.77531454,0.00021917,2]
[392614668,1761747047143,-414.65057716,0.00021917,2]
[392614756,1761747061936,322.7,0.00016054,30]
[392614765,1761747145710,320.94,0.00016308,30]
[392614766,1761747231037,319.19,0.00016707,30]
[392614768,1761747315925,317.45,0.00016701,30]
[392614769,1761747354832,302.256637,0.00030137,120]
[392614770,1761747404884,315.71,0.00016623,30]
[392614771,1761747497818,313.99,0.00016507,30]
[392614772,1761747659511,312.28,0.00016389,30]
[392615006,1761747687646,151.0,0.00017429,2]
[392615007,1761747744767,310.58,0.0001664,30]
[392615008,1761747831290,308.88,0.00016718,30]
[392615009,1761747840256,480.0,0.00030137,120]
[392615010,1761747861114,5000.0,0.000181,5]
[392615011,1761747885620,5000.0,0.000181,5]
[392615018,1761747920166,307.2,0.00016715,30]
[392615027,1761748004785,305.52,0.00016706,30]
[392615030,1761748036091,-533.32408465,0.00018278,5]
[392615031,1761748046560,500.0,0.00030137,120]
[392615038,1761748069551,907.0,0.00030137,120]
[392615072,1761748072451,5000.0,0.000181,5]
[392615080,1761748090753,303.85,0.00016701,30]
[392615081,1761748092689,1000.0,0.00030137,120]
[392615082,1761748095988,5000.0,0.000181,5]
[392615084,1761748113315,5000.0,0.000181,5]
[392615098,1761748127170,1000.46,0.00030137,120]
[392615104,1761748147074,-4064.59500787,0.00018279,5]
[392615105,1761748164157,-935.40499213,0.00018279,5]
[392615106,1761748164180,-5000.0,0.00018279,2]
[392615107,1761748164201,-166.82416864,0.00018463,2]
[392615108,1761748177403,302.2,0.00016706,30]
[392615172,1761748231949,-1633.5358875,0.00018095,2]
[392615175,1761748231962,-1041.65178104,0.00018095,2]
[392615177,1761748231974,-2324.81233146,0.00018095,2]
[392615179,1761748231985,-150.0,0.00018187,2]
[392615180,1761748231995,-300.0,0.00018277,2]
[392615181,1761748232005,-3795.29649187,0.00018278,2]
[392615182,1761748232036,-1204.70350813,0.00018278,2]
[392615183,1761748232046,-226.817139,0.00018498,2]
[392615184,1761748232056,-3151.5587485,0.00018685,2]
[392615185,1761748232066,-166.881537,0.00018807,2]
[392615186,1761748232076,-172.9706703,0.0001887,2]
[392615187,1761748232085,-932.922194,0.00019125,2]
[392615188,1761748232095,-604.39,0.0001949,30]
[392615189,1761748232104,-224.23768588,0.00019699,4]
[392615190,1761748232114,-218.45947583,0.00019699,4]
[392615191,1761748232124,-420.0,0.00019937,2]
[392615192,1761748232133,-2280.0,0.0002,2]
[392615193,1761748232143,-2881.27956924,0.0002,3]
[392615194,1761748232153,-1515.51565074,0.00020011,2]
[392615197,1761748232162,-274.27303472,0.00020013,2]
[392615200,1761748232172,-343.28,0.00020103,3]
[392615202,1761748232181,-171.64,0.00020103,3]
[392615204,1761748232191,-514.92,0.00020103,3]
[392615206,1761748232201,-275.29296139,0.00020112,2]
[392615208,1761748232466,-212.64172121,0.00020112,2]
[392615209,1761748232484,-500.0,0.00020112,2]
[392615210,1761748232500,-500.0,0.00020112,2]
[392615211,1761748232512,-500.0,0.00020112,2]
[392615212,1761748232522,-500.0,0.00020112,2]
[392615213,1761748232531,-500.0,0.00020112,2]
[392615214,1761748232540,-289.0267149,0.00020112,2]
[392615215,1761748232550,-500.0,0.00020112,2]
[392615216,1761748232559,-643.61266895,0.00020112,2]
[392615217,1761748232569,-255.34301887,0.00020112,2]
[392615218,1761748232578,-500.0,0.00020112,2]
[392615219,1761748232587,-500.0,0.00020112,2]
[392615220,1761748232597,-500.0,0.00020112,2]
[392615221,1761748232606,-500.0,0.00020112,2]
[392615222,1761748232615,-500.0,0.00020112,2]
[392615223,1761748232625,-500.0,0.00020112,2]
[392615224,1761748232635,-500.0,0.00020112,2]
[392615225,1761748232644,-500.0,0.00020112,2]
[392615226,1761748232654,-500.0,0.00020112,2]
[392615227,1761748232664,-500.0,0.00020112,2]
[392615228,1761748232677,-511.82241976,0.00020112,2]
[392615229,1761748232687,-500.0,0.00020112,2]
[392615230,1761748232696,-500.0,0.00020112,2]
[392615231,1761748232706,-500.0,0.00020112,2]
[392615232,1761748232715,-500.0,0.00020112,2]
[392615233,1761748232725,-500.0,0.00020112,2]
[392615234,1761748232734,-500.0,0.00020112,2]
[392615235,1761748232743,-500.0,0.00020112,2]
[392615236,1761748232752,-500.0,0.00020112,2]
[392615237,1761748232762,-500.0,0.00020112,2]
[392615238,1761748232771,-500.0,0.00020112,2]
[392615239,1761748232780,-500.0,0.00020112,2]
[392615240,1761748232789,-500.0,0.00020112,2]
[392615241,1761748232799,-500.0,0.00020112,2]
[392615242,1761748232808,-500.0,0.00020112,2]
[392615243,1761748232818,-500.0,0.00020112,2]
[392615244,1761748232828,-445.09114525,0.00020112,2]
[392615245,1761748232838,-500.0,0.00020112,2]
[392615246,1761748232847,-500.0,0.00020112,2]
[392615247,1761748232857,-500.0,0.00020112,2]
[392615248,1761748232866,-500.0,0.00020112,2]
[392615249,1761748232876,-500.0,0.00020112,2]
[392615250,1761748232886,-500.0,0.00020112,2]
[392615251,1761748232895,-500.0,0.00020112,2]
[392615252,1761748232906,-500.0,0.00020112,2]
[392615253,1761748232919,-500.0,0.00020112,2]
[392615254,1761748232929,-500.0,0.00020112,2]
[392615255,1761748232939,-500.0,0.00020112,2]
[392615256,1761748232949,-500.0,0.00020112,2]
[392615257,1761748232959,-57012.12283806,0.00020113,2]
[392615258,1761748232972,-312987.87716194,0.00020113,2]
[392615259,1761748232981,-500.0,0.00020113,2]
[392615260,1761748232992,-500.0,0.00020173,2]
[392615261,1761748233001,-177.0,0.00020187,2]
[392615262,1761748233011,-300.0,0.00020309,2]
[392615263,1761748233020,-300.0,0.00020309,2]
[392615264,1761748233031,-300.0,0.00020309,2]
[392615265,1761748233041,-300.0,0.00020309,2]
[392615266,1761748233051,-300.0,0.00020309,2]
[392615267,1761748233060,-300.0,0.00020309,2]
[392615268,1761748233070,-300.0,0.00020309,2]
[392615269,1761748233079,-300.0,0.00020309,2]
[392615270,1761748233088,-300.0,0.00020309,2]
[392615271,1761748233097,-300.0,0.00020309,2]
[392615272,1761748233107,-300.0,0.00020309,2]
[392615273,1761748233116,-300.0,0.00020309,2]
[392615274,1761748233126,-300.0,0.00020309,2]
[392615275,1761748233135,-300.0,0.00020309,2]
[392615276,1761748233145,-300.0,0.00020309,2]
[392615277,1761748233154,-500.0,0.00020387,2]
[392615278,1761748233164,-600.0,0.00020514,2]
[392615279,1761748233174,-500.0,0.00020661,2]
[392615280,1761748233184,-1000.0,0.00020721,2]
[392615281,1761748233193,-2258.4713923,0.000209,2]
[392615282,1761748233203,-500.0,0.00020935,2]
[392615283,1761748233212,-500.0,0.00021209,2]
[392615284,1761748233221,-1500.0,0.00021268,2]
[392615285,1761748233230,-686.56,0.00021473,3]
[392615286,1761748233239,-343.28,0.00021473,3]
[392615287,1761748233249,-500.0,0.00021483,2]
[392615288,1761748233258,-412.0,0.00021542,2]
[392615289,1761748233268,-2167.0,0.00021542,2]
[392615290,1761748233277,-274.2730347,0.00021737,2]
[392615291,1761748233286,-705.13,0.00021744,2]
[392615292,1761748233295,-587.0,0.00021747,2]
[392615293,1761748233305,-500.0,0.00021757,2]
[392615294,1761748233314,-239.288,0.000218,2]
[392615295,1761748233323,-2000.0,0.00021816,2]
[392615296,1761748233334,-29212.80019081,0.00021817,3]
[392615297,1761748233344,-500.0,0.00021917,2]
[392615298,1761748233353,-500.0,0.00021917,2]
[392615299,1761748233362,-500.0,0.00021917,2]
[392615300,1761748233372,-500.0,0.00021917,2]
[392615301,1761748233381,-845.45,0.00021917,2]
[392615302,1761748233390,-500.0,0.00021917,2]
[392615303,1761748233400,-500.0,0.00021917,2]
[392615304,1761748233409,-500.0,0.00021917,2]
[392615305,1761748233418,-500.0,0.00021917,2]
[392615306,1761748233428,-500.0,0.00021917,2]
[392615307,1761748233438,-500.0,0.00021917,2]
[392615308,1761748233447,-500.0,0.00021917,2]
[392615309,1761748233458,-500.0,0.00021917,2]
[392615310,1761748233467,-500.0,0.00021917,2]
[392615311,1761748233477,-500.0,0.00021917,2]
[392615312,1761748233487,-500.0,0.00021917,2]
[392615313,1761748233496,-925.44,0.00021917,2]
[392615314,1761748233505,-500.0,0.00021917,2]
[392615315,1761748233514,-500.0,0.00021917,2]
[392615316,1761748233523,-500.0,0.00021917,2]
[392615317,1761748233532,-500.0,0.00021917,2]
[392615318,1761748233541,-500.0,0.00021917,2]
[392615319,1761748233551,-500.0,0.00021917,2]
[392615320,1761748233560,-500.0,0.00021917,2]
[392615321,1761748233569,-500.0,0.00021917,2]
[392615322,1761748233578,-500.0,0.00021917,2]
[392615323,1761748233588,-500.0,0.00021917,2]
[392615324,1761748233597,-500.0,0.00021917,2]
[392615325,1761748233606,-500.0,0.00021917,2]
[392615326,1761748233616,-500.0,0.00021917,2]
[392615327,1761748233625,-500.0,0.00021917,2]
[392615328,1761748233634,-500.0,0.00021917,2]
[392615329,1761748233644,-500.0,0.00021917,2]
[392615330,1761748233653,-500.0,0.00021917,2]
[392615331,1761748233662,-267.0837337,0.00021917,2]
[392615332,1761748233671,-500.0,0.00021917,2]
[392615333,1761748233682,-500.0,0.00021917,2]
[392615334,1761748233691,-500.0,0.00021917,2]
[392615335,1761748233700,-500.0,0.00021917,2]
[392615336,1761748233710,-500.0,0.00021917,2]
[392615337,1761748233719,-527.41,0.00021917,2]
[392615338,1761748233728,-500.0,0.00021917,2]
[392615339,1761748233739,-500.0,0.00021917,2]
[392615340,1761748233748,-500.0,0.00021917,2]
[392615341,1761748233758,-500.0,0.00021917,2]
[392615342,1761748233768,-500.0,0.00021917,2]
[392615343,1761748233778,-500.0,0.00021917,2]
[392615344,1761748233787,-500.0,0.00021917,2]
[392615345,1761748233796,-500.0,0.00021917,2]
[392615346,1761748233805,-500.0,0.00021917,2]
[392615347,1761748233815,-500.0,0.00021917,2]
[392615348,1761748233825,-500.0,0.00021917,2]
[392615349,1761748233834,-500.0,0.00021917,2]
[392615350,1761748233845,-500.0,0.00021917,2]
[392615351,1761748233854,-285.9328581,0.00021917,2]
[392615352,1761748233863,-500.0,0.00021917,2]
[392615353,1761748233872,-500.0,0.00021917,2]
[392615354,1761748233882,-500.0,0.00021917,2]
[392615355,1761748233891,-500.0,0.00021917,2]
[392615356,1761748233901,-500.0,0.00021917,2]
[392615357,1761748233912,-500.0,0.00021917,2]
[392615358,1761748233924,-500.0,0.00021917,2]
[392615359,1761748233935,-500.0,0.00021917,2]
[392615360,1761748233944,-2218.58,0.00021917,2]
[392615361,1761748233956,-500.0,0.00021917,2]
[392615362,1761748233967,-500.0,0.00021917,2]
[392615363,1761748233976,-500.0,0.00021917,2]
[392615364,1761748233986,-500.0,0.00021917,2]
[392615365,1761748233996,-500.0,0.00021917,2]
[392615366,1761748234005,-500.0,0.00021917,2]
[392615367,1761748234015,-500.0,0.00021917,2]
[392615368,1761748234024,-500.0,0.00021917,2]
[392615369,1761748234033,-500.0,0.00021917,2]
[392615370,1761748234042,-500.0,0.00021917,2]
[392615371,1761748234051,-500.0,0.00021917,2]
[392615372,1761748234060,-500.0,0.00021917,2]
[392615373,1761748234069,-500.0,0.00021917,2]
[392615374,1761748234078,-500.0,0.00021917,2]
[392615375,1761748234086,-500.0,0.00021917,2]
[392615376,1761748234095,-500.0,0.00021917,2]
[392615377,1761748234104,-500.0,0.00021917,2]
[392615378,1761748234113,-934.87,0.00021917,2]
[392615379,1761748234122,-500.0,0.00021917,2]
[392615380,1761748234131,-500.0,0.00021917,2]
[392615381,1761748234140,-500.0,0.00021917,2]
[392615382,1761748234149,-500.0,0.00021917,2]
[392615383,1761748234158,-500.0,0.00021917,2]
[392615384,1761748234167,-500.0,0.00021917,2]
[392615385,1761748234175,-1249.48,0.00021917,2]
[392615386,1761748234184,-502.29062547,0.00021917,2]
[392615387,1761748234193,-501.97585279,0.00021917,2]
[392615388,1761748234202,-500.0,0.00021917,2]
[392615389,1761748234211,-500.0,0.00021917,2]
[392615390,1761748234220,-500.0,0.00021917,2]
[392615391,1761748234229,-610.91837344,0.00021917,2]
[392615392,1761748234238,-500.0,0.00021917,2]
[392615393,1761748234246,-500.0,0.00021917,2]
[392615394,1761748234255,-500.0,0.00021917,2]
[392615395,1761748234264,-504.96363759,0.00021917,2]
[392615396,1761748234273,-536.3,0.00021917,2]
[392615397,1761748234281,-180.33641888,0.00021917,2]
[392615398,1761748234290,-500.0,0.00021917,2]
[392615399,1761748234299,-500.0,0.00021917,2]
[392615400,1761748234308,-683.67,0.00021917,2]
[392615401,1761748234317,-597.56,0.00021917,2]
[392615402,1761748234325,-501.82923313,0.00021917,2]
[392615403,1761748234334,-992.54,0.00021917,2]
[392615404,1761748234343,-500.0,0.00021917,2]
[392615405,1761748234353,-500.0,0.00021917,2]
[392615406,1761748234362,-500.0,0.00021917,2]
[392615407,1761748234371,-500.0,0.00021917,2]
[392615408,1761748234380,-500.0,0.00021917,2]
[392615409,1761748234389,-500.0,0.00021917,2]
[392615410,1761748234399,-603.01097111,0.00021917,2]
[392615411,1761748234408,-500.0,0.00021917,2]
[392615412,1761748234417,-500.0,0.00021917,2]
[392615413,1761748234428,-500.0,0.00021917,2]
[392615414,1761748234436,-503.08052932,0.00021917,2]
[392615415,1761748234446,-500.0,0.00021917,2]
[392615416,1761748234455,-500.0,0.00021917,2]
[392615417,1761748234464,-500.0,0.00021917,2]
[392615418,1761748234474,-517.55,0.00021917,2]
[392615419,1761748234483,-500.0,0.00021917,2]
[392615420,1761748234492,-500.0,0.00021917,2]
[392615421,1761748234501,-582.39467766,0.00021917,2]
[392615422,1761748234510,-500.0,0.00021917,2]
[392615423,1761748234519,-500.0,0.00021917,2]
[392615424,1761748234529,-500.0,0.00021917,2]
[392615425,1761748234539,-500.0,0.00021917,2]
[392615426,1761748234548,-500.0,0.00021917,2]
[392615427,1761748234557,-500.0,0.00021917,2]
[392615428,1761748234567,-500.0,0.00021917,2]
[392615429,1761748234578,-500.0,0.00021917,2]
[392615430,1761748234588,-500.0,0.00021917,2]
[392615431,1761748234598,-500.0,0.00021917,2]
[392615432,1761748234607,-500.0,0.00021917,2]
[392615433,1761748234629,-500.0,0.00021917,2]
[392615434,1761748234638,-745.4,0.00021917,2]
[392615435,1761748234647,-500.0,0.00021917,2]
[392615436,1761748234658,-500.0,0.00021917,2]
[392615437,1761748234668,-500.0,0.00021917,2]
[392615438,1761748234678,-500.0,0.00021917,2]
[392615439,1761748234689,-500.0,0.00021917,2]
[392615440,1761748234698,-597.91,0.00021917,2]
[392615441,1761748234708,-500.0,0.00021917,2]
[392615442,1761748234718,-609.15,0.00021917,2]
[392615443,1761748234727,-500.0,0.00021917,2]
[392615444,1761748234737,-500.0,0.00021917,2]
[392615445,1761748234749,-500.0,0.00021917,2]
[392615446,1761748234761,-500.0,0.00021917,2]
[392615447,1761748234771,-817.61,0.00021917,2]
[392615448,1761748234782,-500.0,0.00021917,2]
[392615449,1761748234792,-500.0,0.00021917,2]
[392615450,1761748234802,-500.0,0.00021917,2]
[392615451,1761748234813,-500.0,0.00021917,2]
[392615452,1761748234823,-500.0,0.00021917,2]
[392615453,1761748234835,-500.0,0.00021917,2]
[392615454,1761748234847,-500.0,0.00021917,2]
[392615455,1761748234857,-500.0,0.00021917,2]
[392615456,1761748234867,-500.0,0.00021917,2]
[392615457,1761748234878,-434.83241899,0.00021917,2]
[392615458,1761748234889,-500.0,0.00021917,2]
[392615459,1761748234900,-500.0,0.00021917,2]
[392615460,1761748234913,-500.0,0.00021917,2]
[392615461,1761748234927,-500.0,0.00021917,2]
[392615462,1761748234936,-500.0,0.00021917,2]
[392615463,1761748234947,-500.0,0.00021917,2]
[392615464,1761748234956,-500.0,0.00021917,2]
[392615465,1761748234966,-500.0,0.00021917,2]
[392615466,1761748234976,-500.0,0.00021917,2]
[392615467,1761748234986,-500.0,0.00021917,2]
[392615468,1761748234996,-500.0,0.00021917,2]
[392615469,1761748235006,-500.0,0.00021917,2]
[392615470,1761748235016,-500.0,0.00021917,2]
[392615471,1761748235025,-500.0,0.00021917,2]
[392615472,1761748235035,-475.40764716,0.00021917,2]
[392615473,1761748235044,-500.0,0.00021917,2]
[392615474,1761748235054,-500.0,0.00021917,2]
[392615475,1761748235063,-500.0,0.00021917,2]
[392615476,1761748235076,-920.4,0.00021917,2]
[392615477,1761748235086,-500.0,0.00021917,2]
[392615478,1761748235096,-576.42,0.00021917,2]
[392615479,1761748235106,-500.0,0.00021917,2]
[392615480,1761748235116,-500.0,0.00021917,2]
[392615481,1761748235126,-500.0,0.00021917,2]
[392615482,1761748235136,-500.0,0.00021917,2]
[392615483,1761748235146,-500.0,0.00021917,2]
[392615484,1761748235156,-1983.93,0.00021917,2]
[392615485,1761748235166,-649.2,0.00021917,2]
[392615486,1761748235176,-500.0,0.00021917,2]
[392615487,1761748235186,-500.0,0.00021917,2]
[392615488,1761748235196,-500.0,0.00021917,2]
[392615489,1761748235206,-500.0,0.00021917,2]
[392615490,1761748235216,-10612.98,0.00021917,2]
[392615491,1761748235226,-500.0,0.00021917,2]
[392615492,1761748235236,-599.6,0.00021917,2]
[392615493,1761748235246,-500.0,0.00021917,2]
[392615494,1761748235256,-500.0,0.00021917,2]
[392615495,1761748235266,-1160.7,0.00021917,2]
[392615496,1761748235276,-536.55,0.00021917,2]
[392615497,1761748235286,-1320.59,0.00021917,2]
[392615498,1761748235298,-500.0,0.00021917,2]
[392615499,1761748235320,-861.29,0.00021917,2]
[392615500,1761748235336,-676.52,0.00021917,2]
[392615501,1761748235346,-500.0,0.00021917,2]
[392615502,1761748235356,-500.0,0.00021917,2]
[392615503,1761748235366,-500.0,0.00021917,2]
[392615504,1761748235377,-500.0,0.00021917,2]
[392615505,1761748235387,-500.0,0.00021917,2]
[392615506,1761748235397,-500.0,0.00021917,2]
[392615507,1761748235408,-500.0,0.00021917,2]
[392615508,1761748235418,-500.0,0.00021917,2]
[392615509,1761748235428,-562.34,0.00021917,2]
[392615510,1761748235439,-500.0,0.00021917,2]
[392615511,1761748235450,-500.0,0.00021917,2]
[392615512,1761748235460,-500.0,0.00021917,2]
[392615513,1761748235470,-208.91402835,0.00021917,2]
[392615514,1761748235480,-500.0,0.00021917,2]
[392615515,1761748235489,-863.18,0.00021917,2]
[392615516,1761748235499,-545.27,0.00021917,2]
[392615517,1761748235509,-834.37,0.00021917,2]
[392615518,1761748235519,-1223.53,0.00021917,2]
[392615519,1761748235530,-500.0,0.00021917,2]
[392615520,1761748235543,-500.0,0.00021917,2]
[392615521,1761748235553,-500.0,0.00021917,2]
[392615522,1761748235563,-500.0,0.00021917,2]
[392615523,1761748235572,-1841.12,0.00021917,2]
[392615524,1761748235582,-780.49,0.00021917,2]
[392615525,1761748235592,-500.0,0.00021917,2]
[392615526,1761748235602,-500.0,0.00021917,2]
[392615527,1761748235611,-964.7,0.00021917,2]
[392615528,1761748235621,-500.0,0.00021917,2]
[392615529,1761748235630,-500.0,0.00021917,2]
[392615530,1761748235640,-500.0,0.00021917,2]
[392615531,1761748235649,-602.84,0.00021917,2]
[392615532,1761748235659,-1486.59,0.00021917,2]
[392615533,1761748235668,-500.0,0.00021917,2]
[392615534,1761748235677,-721.35,0.00021917,2]
[392615535,1761748235687,-500.0,0.00021917,2]
[392615536,1761748235697,-2496.0,0.00021917,2]
[392615537,1761748235706,-773.59,0.00021917,2]
[392615538,1761748235716,-686.23,0.00021917,2]
[392615539,1761748235726,-500.0,0.00021917,2]
[392615540,1761748235735,-500.0,0.00021917,2]
[392615541,1761748235745,-500.0,0.00021917,2]
[392615542,1761748235754,-644.77,0.00021917,2]
[392615543,1761748235763,-500.0,0.00021917,2]
[392615544,1761748235773,-500.0,0.00021917,2]
[392615545,1761748235783,-500.0,0.00021917,2]
[392615546,1761748235792,-500.0,0.00021917,2]
[392615547,1761748235802,-500.0,0.00021917,2]
[392615548,1761748235811,-500.0,0.00021917,2]
[392615549,1761748235821,-699.78,0.00021917,2]
[392615550,1761748235831,-775.58,0.00021917,2]
[392615551,1761748235840,-500.0,0.00021917,2]
[392615552,1761748236034,-559.3,0.00021917,2]
[392615553,1761748236050,-500.0,0.00021917,2]
[392615554,1761748236061,-1136.5,0.00021917,2]
[392615555,1761748236071,-4323.77,0.00021917,2]
[392615556,1761748236081,-500.0,0.00021917,2]
[392615557,1761748236090,-500.0,0.00021917,2]
[392615558,1761748236100,-796.69,0.00021917,2]
[392615559,1761748236110,-500.0,0.00021917,2]
[392615560,1761748236119,-500.0,0.00021917,2]
[392615561,1761748236128,-500.0,0.00021917,2]
[392615562,1761748236137,-579.7,0.00021917,2]
[392615563,1761748236147,-500.0,0.00021917,2]
[392615564,1761748236156,-500.0,0.00021917,2]
[392615565,1761748236165,-942.89,0.00021917,2]
[392615566,1761748236175,-500.0,0.00021917,2]
[392615567,1761748236184,-500.0,0.00021917,2]
[392615568,1761748236193,-500.0,0.00021917,2]
[392615569,1761748236203,-500.0,0.00021917,2]
[392615570,1761748236212,-1352.33,0.00021917,2]
[392615571,1761748236222,-500.0,0.00021917,2]
[392615572,1761748236232,-500.0,0.00021917,2]
[392615573,1761748236241,-500.0,0.00021917,2]
[392615574,1761748236251,-500.0,0.00021917,2]
[392615575,1761748236261,-657.55,0.00021917,2]
[392615576,1761748236271,-1209.53,0.00021917,2]
[392615577,1761748236281,-1014.96,0.00021917,2]
[392615578,1761748236292,-500.0,0.00021917,2]
[392615579,1761748236302,-500.0,0.00021917,2]
[392615580,1761748236314,-1316.76,0.00021917,2]
[392615581,1761748236324,-502.55,0.00021917,2]
[392615582,1761748236333,-961.23,0.00021917,2]
[392615583,1761748236342,-500.0,0.00021917,2]
[392615584,1761748236352,-1064.64,0.00021917,2]
[392615585,1761748236361,-500.0,0.00021917,2]
[392615586,1761748236371,-944.54,0.00021917,2]
[392615587,1761748236380,-500.0,0.00021917,2]
[392615588,1761748236390,-500.0,0.00021917,2]
[392615589,1761748236400,-1404.49,0.00021917,2]
[392615590,1761748236411,-500.0,0.00021917,2]
[392615591,1761748236421,-696.54,0.00021917,2]
[392615592,1761748236430,-1004.64,0.00021917,2]
[392615593,1761748236439,-2316.28,0.00021917,2]
[392615594,1761748236449,-1014.08,0.00021917,2]
[392615595,1761748236458,-500.0,0.00021917,2]
[392615596,1761748236467,-500.0,0.00021917,2]
[392615597,1761748236476,-1168.82,0.00021917,2]
[392615598,1761748236485,-1653.26,0.00021917,2]
[392615599,1761748236495,-500.0,0.00021917,2]
[392615600,1761748236504,-500.0,0.00021917,2]
[392615601,1761748236513,-473.40536847,0.00021917,2]
[392615602,1761748236523,-500.0,0.00021917,2]
[392615603,1761748236540,-542.07,0.00021917,2]
[392615604,1761748236553,-500.0,0.00021917,2]
[392615605,1761748236563,-667.4,0.00021917,2]
[392615606,1761748236572,-1083.47,0.00021917,2]
[392615607,1761748236582,-500.0,0.00021917,2]
[392615608,1761748236591,-1545.35,0.00021917,2]
[392615609,1761748236601,-500.0,0.00021917,2]
[392615610,1761748236610,-500.0,0.00021917,2]
[392615611,1761748236620,-595.43,0.00021917,2]
[392615612,1761748236630,-500.0,0.00021917,2]
[392615613,1761748236639,-500.0,0.00021917,2]
[392615614,1761748236649,-500.0,0.00021917,2]
[392615615,1761748236658,-548.72,0.00021917,2]
[392615616,1761748236668,-500.0,0.00021917,2]
[392615617,1761748236677,-500.0,0.00021917,2]
[392615618,1761748236690,-500.0,0.00021917,2]
[392615619,1761748236700,-500.0,0.00021917,2]
[392615620,1761748236709,-500.0,0.00021917,2]
[392615621,1761748236722,-1485.4554138,0.00021918,7]
[392615622,1761748236732,-500.0,0.00021918,2]
[392615623,1761748236743,-1515.51565067,0.0002194,2]
[392615624,1761748236753,-500.0,0.00021973,2]